bitfinex-derivatives/quotes_ETHF0:USTF0_20250919
["timestamp","ask_amount","ask_price","bid_price","bid_amount"]
[1758300624725,0.98700758,4489.9,4489.8,0.9944]
[1758300626827,0.76300758,4489.9,4489.8,0.9944]
[1758300627027,0.98700758,4489.9,4489.8,0.9944]
[1758300629625,2.58938726,4489.9,4489.8,0.9944]
[1758300630024,0.3192,4489.6,4489.0,0.0712]
[1758300630227,0.4056,4489.1,4489.0,0.8686]
[1758300630526,1.39260758,4489.1,4489.0,0.8686]
[1758300631326,2.27450758,4489.1,4489.0,0.4704]
[1758300631924,3.38708726,4489.1,4489.0,0.8686]
[1758300632229,1.78470758,4489.1,4489.0,1.4657]
[1758300632631,1.39260758,4489.1,4489.0,1.4657]
[1758300633627,0.98700758,4489.1,4489.0,1.86648]
[1758300633828,0.76300758,4489.1,4489.0,1.86648]
[1758300634130,0.98700758,4489.1,4489.0,1.86648]
[1758300635530,0.98700758,4489.1,4489.0,1.4657]
[1758300635827,1.39260758,4489.1,4489.0,1.4657]
[1758300636232,1.39260758,4489.1,4489.0,1.86648]
[1758300636834,0.98700758,4489.1,4489.0,1.86648]
[1758300637132,0.98700758,4489.1,4489.0,1.4657]
[1758300637334,1.39260758,4489.1,4489.0,1.4657]
[1758300637534,1.78470758,4489.1,4489.0,1.4657]
[1758300639242,3.38708726,4489.1,4489.0,1.4657]
[1758300639439,3.87688726,4489.1,4489.0,1.0675]
[1758300639937,1.3713,4488.6,4488.5,2.2281]
[1758300640137,2.35830758,4488.6,4488.5,2.2281]
[1758300641542,5.56610758,4488.6,4488.5,0.42279024]
[1758300641741,5.56610758,4488.6,4487.9,0.4228]
[1758300642047,0.9792,4488.2,4488.1,1.3945]
[1758300642240,1.16860758,4488.2,4488.1,1.3945]
[1758300642442,1.39260758,4488.2,4488.1,1.3945]
[1758300644546,2.35830758,4488.2,4488.1,1.3945]
[1758300648162,1.78470758,4488.2,4488.1,1.3945]
[1758300648351,1.7842776,4488.2,4488.1,1.3945]
[1758300648753,1.5602776,4488.2,4488.1,1.3945]
[1758300649048,1.7842776,4488.2,4488.1,1.3945]
[1758300649445,0.7625776,4488.2,4488.1,1.3945]
[1758300649641,0.9865776,4488.2,4488.1,1.3945]
[1758300650552,1.39221754,4488.2,4488.1,1.3945]
[1758300650752,2.35791754,4488.2,4488.1,1.3945]
[1758300651553,0.98661754,4488.2,4488.1,4.6023]
[1758300651944,1.39221754,4488.2,4488.1,4.6023]
[1758300652144,1.96581754,4488.2,4488.1,4.6023]
[1758300652750,1.74181754,4488.2,4488.1,4.6023]
[1758300652946,1.39221754,4488.2,4488.1,4.6023]
[1758300653855,1.16821754,4488.2,4488.1,4.6023]
[1758300654060,2.35791754,4488.2,4488.1,4.6023]
[1758300654356,1.39221754,4488.2,4488.1,4.6023]
[1758300654855,0.76261754,4488.2,4488.1,4.6023]
[1758300655051,0.98661754,4488.2,4488.1,4.6023]
[1758300655553,2.35791754,4488.2,4488.1,4.6023]
[1758300655855,1.78431754,4488.2,4488.1,4.6023]
[1758300656452,2.35791754,4488.2,4488.1,4.6023]
[1758300657142,2.35791754,4488.2,4488.1,1.3945]
[1758300660057,2.35791754,4488.2,4488.1,0.9963]
[1758300660446,2.35791754,4488.2,4488.1,1.4314]
[1758300662260,0.98661754,4488.2,4488.1,5.04006]
[1758300662462,0.98661754,4488.2,4488.1,4.6392]
[1758300662759,1.42191754,4488.2,4488.1,5.04006]
[1758300663562,0.76261754,4488.2,4488.1,5.04006]
[1758300663753,0.98661754,4488.2,4488.1,5.04006]
[1758300664458,2.04641754,4488.2,4488.1,4.6392]
[1758300664660,1.42191754,4488.2,4488.1,4.6392]
[1758300665854,1.82241754,4488.2,4488.1,4.6392]
[1758300666055,2.46591754,4488.2,4488.1,4.6392]
[1758300666262,2.46591754,4488.2,4488.1,1.4314]
[1758300667362,0.8548,4488.0,4487.9,1.0593]
[1758300667557,2.24191754,4488.0,4487.9,1.4699]
[1758300668056,2.24191754,4488.0,4487.9,1.905]
[1758300668660,1.84141754,4488.0,4487.9,1.905]
[1758300669361,2.46591754,4488.0,4487.9,1.905]
[1758300669559,1.61741754,4488.0,4487.9,1.905]
[1758300669760,1.84141754,4488.0,4487.9,1.905]
[1758300669958,2.46591754,4488.0,4487.9,1.905]
[1758300674658,2.71631754,4488.0,4487.9,1.4699]
[1758300674856,2.71631754,4488.0,4487.6,3.2078]
[1758300675054,1.4793,4487.6,4487.5,0.0222]
[1758300675355,0.2504,4487.5,4487.1,3.8443]
[1758300675661,0.2504,4487.5,4487.1,4.0535]
[1758300675662,1.4793,4487.2,4487.1,4.0535]
[1758300675855,2.46591754,4487.2,4487.1,4.0535]
[1758300676055,2.46591754,4487.2,4487.1,5.09095]
[1758300676257,0.76261754,4487.2,4487.1,9.31381]
[1758300676463,0.98661754,4487.2,4487.1,9.31381]
[1758300676665,0.98661754,4487.2,4487.1,9.09095]
[1758300677057,0.76261754,4487.2,4487.1,9.09095]
[1758300677258,0.98661754,4487.2,4487.1,9.31381]
[1758300677762,0.98661754,4487.2,4487.1,9.09095]
[1758300679059,0.76261754,4487.2,4487.1,9.09095]
[1758300679260,0.98661754,4487.2,4487.1,9.09095]
[1758300680566,0.76261754,4487.2,4487.1,9.09095]
[1758300680760,0.98661754,4487.2,4487.1,9.09095]
[1758300683165,1.59913369,4488.0,4487.1,9.09095]
[1758300683166,1.59913369,4488.0,4487.9,0.61728246]
[1758300683466,2.95393415,4488.0,4487.9,1.66438246]
[1758300684966,2.72993415,4488.0,4487.9,1.66438246]
[1758300685169,2.95393415,4488.0,4487.9,1.66438246]
[1758300685465,3.42693415,4488.0,4487.9,1.66438246]
[1758300686060,1.82780046,4488.0,4487.9,1.66438246]
[1758300686266,7.43016921,4488.0,4487.9,0.61728246]
[1758300686462,1.5518,4488.0,4487.9,1.25378246]
[1758300687965,1.5518,4488.0,4487.9,0.61728246]
[1758300688174,1.5518,4488.0,4487.2,3.2078]
[1758300688175,1.3278,4487.4,4487.3,1.0471]
[1758300688471,1.5518,4487.4,4487.3,1.0471]
[1758300688866,1.5518,4487.4,4487.3,0.6365]
[1758300689572,3.15432161,4487.4,4487.3,0.6365]
[1758300690375,1.5518,4487.4,4487.3,0.6365]
[1758300690673,3.15432161,4487.4,4487.3,0.6365]
[1758300691268,1.5518,4487.4,4487.3,0.6365]
[1758300693777,1.5518,4487.4,4487.3,1.0303]
[1758300695174,1.8190667,4487.4,4487.3,1.0303]
[1758300695373,2.37138095,4487.4,4487.3,1.0303]
[1758300697377,2.37138095,4487.4,4487.1,0.6538]
[1758300697378,0.4689,4487.3,4487.1,0.6538]
[1758300697683,1.3213,4487.0,4486.9,2.2289]
[1758300697881,2.36488095,4487.0,4486.9,2.2289]
[1758300698078,2.36490523,4487.0,4486.9,2.2289]
[1758300698581,2.36490523,4487.0,4486.6,0.676]
[1758300698778,0.8524,4486.8,4486.6,0.0222]
[1758300698978,2.36490523,4486.7,4486.6,0.416]
[1758300699175,2.36490523,4486.7,4486.6,0.3938]
[1758300699489,2.36490523,4486.7,4486.6,1.0476]
[1758300702372,2.36490523,4486.7,4486.6,1.87729]
[1758300702373,1.89600523,4486.7,4486.6,1.87729]
[1758300702682,1.89600523,4486.7,4486.6,1.4763]
[1758300704374,1.67200523,4486.7,4486.6,1.4763]
[1758300704583,1.89600523,4486.7,4486.6,1.4763]
[1758300705970,1.89582039,4486.7,4486.6,1.87729]
[1758300706273,1.89582039,4486.7,4486.6,1.4763]
[1758300707678,1.67182039,4486.7,4486.6,1.87729]
[1758300707884,1.89582039,4486.7,4486.6,1.4763]
[1758300709481,1.89582039,4486.7,4486.6,1.87729]
[1758300709681,1.04342039,4486.7,4486.6,1.87729]
[1758300710488,1.46662039,4486.7,4486.6,1.87729]
[1758300713682,0.81942039,4486.7,4486.6,1.87729]
[1758300713885,1.04342039,4486.7,4486.6,1.87729]
[1758300720692,0.81942039,4486.7,4486.6,1.87729]
[1758300721188,1.04342039,4486.7,4486.6,1.87729]
[1758300723087,0.81942039,4486.7,4486.6,1.87729]
[1758300723292,1.04342039,4486.7,4486.6,1.87729]
[1758300723493,0.81942039,4486.7,4486.6,1.87729]
[1758300723792,1.04342039,4486.7,4486.6,1.87729]
[1758300724685,1.04342039,4486.7,4486.6,1.4763]
[1758300725994,0.81942039,4486.7,4486.6,1.4763]
[1758300726194,1.04342039,4486.7,4486.6,1.4763]
[1758300727289,3.06199586,4486.7,4486.6,1.4763]
[1758300731698,3.06199586,4486.7,4486.6,1.87729]
[1758300732002,1.46022039,4486.7,4486.6,1.87729]
[1758300734598,1.04342039,4486.7,4486.6,1.87729]
[1758300735199,0.81942039,4486.7,4486.6,1.87729]
[1758300735394,1.04342039,4486.7,4486.6,1.87729]
[1758300735595,0.81942039,4486.7,4486.6,5.87729]
[1758300735790,0.13988373,4486.7,4486.6,5.87729]
[1758300735997,0.224,4487.0,4486.9,1.23027]
[1758300736199,36.5338,4487.8,4487.7,1.84019]
[1758300736394,36.341,4487.8,4487.7,5.04799]
[1758300737295,36.7578,4487.8,4487.7,5.04799]
[1758300737798,36.341,4487.8,4487.7,5.04799]
[1758300738394,36.7578,4487.8,4487.7,5.04799]
[1758300739297,37.3457,4487.8,4487.7,5.04799]
[1758300740204,37.1217,4487.8,4487.7,5.04799]
[1758300740504,37.3457,4487.8,4487.7,5.04799]
[1758300741300,37.742,4487.8,4487.7,5.04799]
[1758300741900,37.742,4487.8,4487.7,4.6471]
[1758300742301,37.742,4487.8,4487.7,5.04799]
[1758300743402,37.518,4487.8,4487.7,5.04799]
[1758300743605,37.742,4487.8,4487.7,5.04799]
[1758300744198,37.518,4487.8,4487.7,5.04799]
[1758300744403,37.742,4487.8,4487.7,5.04799]
[1758300746002,37.742,4487.8,4487.7,4.03659]
[1758300747915,38.28786736,4487.8,4487.7,4.03659]
[1758300748104,38.54601482,4487.8,4487.7,4.03659]
[1758300749109,38.54601482,4487.8,4487.7,4.66519]
[1758300750112,38.32201482,4487.8,4487.7,4.66519]
[1758300750314,38.54601482,4487.8,4487.7,4.66519]
[1758300750912,38.54601482,4487.8,4487.7,5.06969]
[1758300751606,37.33781482,4487.8,4487.7,5.06969]
[1758300751810,37.14501482,4487.8,4487.7,5.06969]
[1758300752016,36.92101482,4487.8,4487.7,5.06969]
[1758300752215,37.14501482,4487.8,4487.7,5.06969]
[1758300753915,36.92101482,4487.8,4487.7,5.06969]
[1758300754115,37.14501482,4487.8,4487.7,5.06969]
[1758300754417,36.92101482,4487.8,4487.7,5.06969]
[1758300754617,37.14501482,4487.8,4487.7,5.06969]
[1758300755017,36.92101482,4487.8,4487.7,5.06969]
[1758300755216,37.14501482,4487.8,4487.7,5.06969]
[1758300756417,38.59311482,4487.8,4487.7,5.06969]
[1758300756613,38.36911482,4487.8,4487.7,5.06969]
[1758300756815,38.59311482,4487.8,4487.7,3.2078]
[1758300757117,38.59311482,4487.8,4487.7,3.60869]
[1758300758521,38.59311482,4487.8,4487.7,3.2078]
[1758300758822,37.98241482,4487.8,4487.6,2.2289]
[1758300759119,2.25211482,4487.7,4487.6,2.2289]
[1758300766519,2.25211482,4487.7,4487.6,3.2551]
[1758300766818,2.25211482,4487.7,4487.6,2.2289]
[1758300768320,2.06131482,4487.7,4487.6,4.0605]
[1758300768525,1.02801482,4487.7,4487.6,4.0605]
[1758300769530,1.44281482,4487.7,4487.6,4.0605]
[1758300769920,2.05351482,4487.7,4487.6,4.0605]
[1758300770422,2.47611482,4487.7,4487.6,4.0605]
[1758300771424,2.47611482,4487.7,4487.6,3.6596]
[1758300771625,2.47611482,4487.7,4487.6,2.2289]
[1758300772013,4.07789029,4487.7,4487.6,2.2289]
[1758300772719,4.07789029,4487.7,4487.6,3.2551]
[1758300773323,3.85389029,4487.7,4487.6,3.2551]
[1758300773525,4.07789029,4487.7,4487.6,2.2289]
[1758300773921,3.85389029,4487.7,4487.6,2.2289]
[1758300774121,4.07789029,4487.7,4487.6,3.2551]
[1758300777322,4.07789029,4487.7,4487.6,3.6596]
[1758300778928,4.07753941,4487.7,4487.6,3.6596]
[1758300779626,3.85353941,4487.7,4487.6,3.6596]
[1758300779826,4.07753941,4487.7,4487.6,3.6596]
[1758300780323,2.47576394,4487.7,4487.6,2.2289]
[1758300780522,2.47576394,4487.7,4487.6,1.02519173]
[1758300789429,2.47601787,4487.7,4487.6,1.02519173]
[1758300790028,2.47242753,4487.7,4487.6,1.02519173]
[1758300791126,2.47242753,4487.7,4487.6,1.60519173]
[1758300792936,2.24842753,4487.7,4487.6,2.39299173]
[1758300793234,2.47242753,4487.7,4487.6,2.39299173]
[1758300793831,2.47242753,4487.7,4487.6,2.79389173]
[1758300794539,2.47242753,4487.7,4487.6,2.39299173]
[1758300794832,2.47242753,4487.7,4485.8,0.58]
[1758300794833,0.8814,4485.9,4485.8,0.58]
[1758300795034,1.02432753,4485.9,4485.6,0.58]
[1758300795230,0.2098,4485.6,4485.2,3.2078]
[1758300795431,0.8814,4485.2,4485.1,0.58]
[1758300795734,0.8814,4485.2,4485.0,0.2442]
[1758300795735,1.4088,4484.7,4484.6,3.2078]
[1758300795935,2.43412753,4484.7,4484.6,3.5924]
[1758300796130,1.82762753,4484.7,4484.6,3.9956]
[1758300796526,4.80890604,4485.4,4484.7,0.78697247]
[1758300796731,0.225,4485.3,4484.7,0.78697247]
[1758300797734,0.225,4485.3,4485.0,0.6288]
[1758300798126,0.225,4485.3,4485.1,0.58]
[1758300798332,0.225,4485.3,4485.0,0.2442]
[1758300798535,0.225,4485.3,4485.2,0.58]
[1758300799032,0.225,4485.3,4485.1,0.3846]
[1758300799241,3.2078,4485.4,4485.3,1.3678]
[1758300799439,3.4328,4485.4,4485.3,1.3678]
[1758300802239,3.2078,4485.4,4485.3,1.3678]
[1758300802436,36.113,4486.1,4485.4,0.58]
[1758300802631,36.113,4486.1,4486.0,0.8242]
[1758300802835,36.338,4486.1,4486.0,0.8242]
[1758300804137,38.1526525,4486.1,4486.0,0.8242]
[1758300804731,37.9276525,4486.1,4486.0,0.8242]
[1758300804935,36.338,4486.1,4486.0,0.8242]
[1758300805541,36.113,4486.1,4486.0,0.8242]
[1758300805743,36.338,4486.1,4486.0,0.8242]
[1758300807838,36.338,4486.1,4486.0,0.58]
[1758300808444,36.363,4486.1,4486.0,0.58]
[1758300808646,37.1896181,4486.1,4486.0,0.58]
[1758300808845,37.1896181,4486.1,4485.0,0.2442]
[1758300808846,37.1836181,4486.1,4485.6,0.6087]
[1758300809046,1.2867,4485.7,4485.6,0.6087]
[1758300809244,2.3383181,4485.7,4485.6,0.6087]
[1758300809844,5.5461181,4485.7,4485.6,0.6087]
[1758300812147,7.14722414,4485.7,4485.6,0.6087]
[1758300813144,7.14722414,4485.7,4485.6,1.0008]
[1758300814447,5.5461181,4485.7,4485.6,1.0008]
[1758300815146,7.14722414,4485.7,4485.6,1.0008]
[1758300817246,3.71442414,4485.7,4485.6,1.40188]
[1758300817448,0.8266181,4485.7,4485.6,1.79268]
[1758300817748,0.8266181,4485.7,4485.6,5.79268]
[1758300817943,1.0516181,4485.7,4485.6,5.79268]
[1758300819044,1.05201503,4485.7,4485.6,5.79268]
[1758300819350,1.05201503,4485.7,4485.6,1.79268]
[1758300819956,1.84431503,4485.7,4485.6,1.79268]
[1758300820155,2.33871503,4485.7,4485.6,1.3916]
[1758300820345,2.33871503,4485.7,4485.6,1.0008]
[1758300820653,5.5467273,4485.7,4485.3,0.6087]
[1758300820855,1.2867,4485.4,4485.2,0.3108]
[1758300821154,2.3389273,4485.3,4485.2,0.3108]
[1758300821753,2.3389273,4485.3,4484.9,0.6087]
[1758300821943,0.7923,4484.8,4484.7,1.0008]
[1758300822154,1.8445273,4484.8,4484.7,1.3916]
[1758300822352,2.3389273,4484.8,4484.7,1.3916]
[1758300823860,1.8445273,4484.8,4484.7,1.3916]
[1758300824458,2.87253919,4484.8,4484.7,1.3916]
[1758300824661,3.44138483,4484.8,4484.7,1.3916]
[1758300828763,3.44138483,4484.8,4484.7,1.79276]
[1758300831563,1.84547014,4484.8,4484.7,1.79276]
[1758300833369,0.82817014,4484.8,4484.7,1.79276]
[1758300833573,1.05317014,4484.8,4484.7,1.79276]
[1758300837275,0.82817014,4484.8,4484.7,1.79276]
[1758300837468,1.05317014,4484.8,4484.7,1.79276]
[1758300838167,0.82817014,4484.8,4484.7,1.79276]
[1758300838471,1.05317014,4484.8,4484.7,1.79276]
[1758300841371,1.45077014,4484.8,4484.7,1.79276]
[1758300844569,1.05317014,4484.8,4484.7,1.79276]
[1758300844770,1.05317014,4484.8,4484.7,1.3916]
[1758300848076,1.45627014,4484.8,4484.7,1.3916]
[1758300848373,2.32137014,4484.8,4484.7,1.3916]
[1758300849370,2.32137014,4484.8,4484.7,1.0008]
[1758300850773,2.31403189,4484.8,4484.7,0.6087]
[1758300854472,2.31403189,4484.8,4484.7,1.0168]
[1758300856979,1.83593189,4484.8,4484.7,1.4252]
[1758300859782,1.83593189,4484.8,4484.7,1.4252]
[1758300862080,1.83593189,4484.8,4484.7,0.22076975]
[1758300862280,2.18873189,4484.8,4484.7,1.03002975]
[1758300862474,0.7919028,4484.8,4484.7,1.03002975]
[1758300862680,1.04076453,4484.8,4484.7,1.03002975]
[1758300863384,2.64506617,4484.8,4484.7,1.03002975]
[1758300863580,3.22286617,4484.8,4484.7,1.03002975]
[1758300863883,2.40866453,4484.8,4484.7,0.62886975]
[1758300864081,2.40866453,4484.8,4484.7,1.22836975]
[1758300864674,2.40020311,4484.8,4484.7,1.62952975]
[1758300869682,2.40022559,4484.8,4484.7,1.62952975]
[1758300870784,1.4054,4484.7,4484.6,3.5186]
[1758300870984,2.21372559,4484.7,4484.6,0.3108]
[1758300871981,2.21372559,4484.7,4484.4,0.0222]
[1758300871982,0.2275,4484.5,4484.4,0.0222]
[1758300872182,2.66522559,4484.5,4484.4,0.0222]
[1758300872488,1.4054,4484.2,4484.1,4.00842]
[1758300872689,2.43772559,4484.2,4484.1,4.00842]
[1758300873183,2.43772559,4484.2,4484.1,4.62082]
[1758300873386,2.43772559,4484.2,4484.1,4.99592]
[1758300873585,1.82842559,4484.2,4484.1,4.99592]
[1758300873892,2.05242559,4484.2,4484.1,4.99592]
[1758300874584,2.4376154,4484.2,4484.1,4.99592]
[1758300877892,2.4376154,4484.2,4484.1,4.5947]
[1758300878089,2.4376154,4484.2,4484.1,4.38352]
[1758300879292,2.4376154,4484.2,4484.1,4.99592]
[1758300879689,2.2136154,4484.2,4484.1,4.99592]
[1758300879990,2.4376154,4484.2,4484.1,4.99592]
[1758300882292,1.60428976,4484.7,4484.6,0.3994]
[1758300882492,1.60428976,4485.5,4485.1,0.6124]
[1758300882699,36.134,4485.6,4485.5,0.8469]
[1758300882892,36.7722,4485.6,4485.5,1.6214]
[1758300883291,0.7985,4485.7,4485.6,1.0118]
[1758300883598,1.0235,4485.7,4485.6,0.6124]
[1758300883796,1.0235,4485.7,4485.2,3.2078]
[1758300884093,1.0235,4485.7,4485.3,0.6124]
[1758300884392,0.7985,4485.2,4485.1,0.80053]
[1758300884589,1.0235,4485.2,4485.1,1.78803]
[1758300886401,1.4054,4485.1,4485.0,0.4019]
[1758300886592,1.4054,4485.1,4485.0,1.4137]
[1758300888702,1.4054,4485.1,4485.0,1.0143]
[1758300889498,1.4054,4485.1,4485.0,0.4019]
[1758300889801,1.4054,4485.1,4485.0,1.0143]
[1758300891107,1.4054,4485.1,4485.0,0.4019]
[1758300894313,2.20826028,4485.1,4485.0,0.4019]
[1758300895412,2.20826028,4485.1,4484.9,0.0222]
[1758300895618,1.82636028,4485.0,4484.9,0.6346]
[1758300895819,2.43326028,4485.0,4484.9,1.034]
[1758300896107,2.43326028,4485.0,4484.9,1.0118]
[1758300898416,4.03458485,4485.0,4484.9,1.0118]
[1758300900416,2.43326028,4485.0,4484.9,1.0118]
[1758300900915,3.4275572,4485.0,4484.9,1.3869]
[1758300901519,4.0179572,4485.0,4484.9,1.3869]
[1758300901712,2.41676028,4485.0,4484.9,1.3869]
[1758300902214,2.41676028,4485.0,4484.9,0.6124]
[1758300902819,2.41676028,4485.0,4484.8,0.5668]
[1758300903122,2.20616028,4484.9,4484.7,0.589]
[1758300903419,2.43116028,4484.8,4484.7,0.589]
[1758300903819,2.43116028,4484.8,4484.7,0.5668]
[1758300904716,2.43115851,4484.8,4484.7,0.5668]
[1758300905321,2.20615851,4484.8,4484.7,0.5668]
[1758300905521,2.43115851,4484.8,4484.7,0.5668]
[1758300905925,2.43115851,4484.8,4484.7,0.9466]
[1758300906619,2.43115851,4484.8,4484.7,0.5668]
[1758300908727,2.43115851,4484.8,4484.7,0.9466]
[1758300910427,2.43115851,4484.8,4484.6,1.9721812]
[1758300910629,2.20615851,4484.7,4484.6,2.3519812]
[1758300910830,2.20615851,4484.7,4484.6,3.1689512]
[1758300911129,2.43115851,4484.7,4484.6,3.1689512]
[1758300911329,2.20615851,4484.7,4484.6,3.1689512]
[1758300911523,1.02785851,4484.7,4484.6,2.7677812]
[1758300911723,1.61825851,4484.7,4484.6,2.7677812]
[1758300912526,2.43115851,4484.7,4484.6,2.3519812]
[1758300913129,2.43115851,4484.7,4484.6,2.9187812]
[1758300913431,2.43115851,4484.7,4484.6,3.7357512]
[1758300913625,1.39325851,4484.7,4484.6,3.7357512]
[1758300913821,1.61825851,4484.7,4484.6,3.7357512]
[1758300914430,2.01615851,4484.7,4484.6,3.7357512]
[1758300914927,1.39325851,4484.7,4484.6,3.7357512]
[1758300915130,1.61825851,4484.7,4484.6,3.7357512]
[1758300915534,2.01615851,4484.7,4484.6,3.7357512]
[1758300916334,3.61749592,4484.7,4484.6,3.7357512]
[1758300916530,3.39249592,4484.7,4484.6,3.7357512]
[1758300916730,3.61749592,4484.7,4484.6,3.7357512]
[1758300918036,3.39249592,4484.7,4484.6,3.7357512]
[1758300918234,0.80285851,4484.7,4484.6,7.7357512]
[1758300918437,1.02785851,4484.7,4484.6,7.9587312]
[1758300918735,1.02785851,4484.7,4484.6,7.7357512]
[1758300922334,0.74856531,4484.7,4484.6,7.7357512]
[1758300922541,0.5904,4485.6,4485.5,1.02078]
[1758300922733,0.5904,4485.6,4485.5,4.22858]
[1758300923039,0.225,4485.6,4485.5,4.22858]
[1758300923240,0.8154,4485.6,4485.5,4.22858]
[1758300923834,1.6283,4485.6,4485.5,4.08108]
[1758300924335,1.6283,4485.6,4485.5,3.2078]
[1758300924732,0.2285,4485.5,4485.2,1.9721]
[1758300924938,1.4033,4485.3,4485.2,1.9721]
[1758300925136,1.6283,4485.3,4485.2,1.9721]
[1758300927048,1.6283,4485.3,4485.2,2.2082]
[1758300929740,1.6283,4485.3,4485.2,2.60932]
[1758300929936,1.6283,4485.3,4485.2,2.2082]
[1758300930944,1.6283,4485.3,4485.2,2.60931]
[1758300931943,1.6283,4485.3,4485.2,2.83901]
[1758300932544,1.4033,4485.3,4485.2,2.83901]
[1758300932746,1.6283,4485.3,4485.2,2.83901]
[1758300933948,1.6283,4485.3,4485.2,2.4379]
[1758300934144,1.6283,4485.3,4485.2,2.2082]
[1758300934449,2.44393987,4485.3,4485.2,2.2082]
[1758300934747,2.44393987,4485.3,4485.2,1.9721]
[1758300936242,2.21893649,4485.3,4485.2,2.4315]
[1758300936443,2.44393649,4485.3,4485.2,2.4315]
[1758300937447,1.40603649,4485.3,4485.2,2.97612]
[1758300937747,1.04063649,4485.3,4485.2,2.97612]
[1758300937947,1.63913649,4485.3,4485.2,2.97612]
[1758300939050,2.02783649,4485.3,4485.2,2.97612]
[1758300940754,1.63913649,4485.3,4485.2,2.97612]
[1758300941049,1.41413649,4485.3,4485.2,2.97612]
[1758300941450,1.63913649,4485.3,4485.2,2.97612]
[1758300942848,1.04063649,4485.3,4485.2,2.97612]
[1758300944139,1.63913649,4485.3,4485.2,2.97612]
[1758300944345,1.63813649,4485.3,4485.2,2.97612]
[1758300944750,0.81563649,4485.3,4485.2,2.97612]
[1758300944952,1.03963649,4485.3,4485.2,2.97612]
[1758300945354,0.81563649,4485.3,4485.2,2.97612]
[1758300945549,1.03963649,4485.3,4485.2,2.97612]
[1758300947356,1.63813649,4485.3,4485.2,2.97612]
[1758300951864,2.42143649,4485.3,4485.2,2.83262]
[1758300952664,2.19743649,4485.3,4485.2,2.83262]
[1758300952861,2.42143649,4485.3,4485.2,2.97612]
[1758300953455,2.42143649,4485.3,4485.2,2.83262]
[1758300957068,2.19743649,4485.3,4485.2,2.83262]
[1758300957261,2.42143649,4485.3,4485.2,2.83262]
[1758300957864,2.19743649,4485.3,4485.2,2.83262]
[1758300958065,2.02683649,4485.3,4485.2,2.97612]
[1758300959762,2.01548935,4485.3,4485.2,2.97612]
[1758300960167,2.01548935,4485.3,4485.2,2.83262]
[1758300960763,1.77179435,4485.3,4485.2,2.83262]
[1758300961268,1.54779435,4485.3,4485.2,2.83262]
[1758300961468,2.01551063,4485.3,4485.2,2.83262]
[1758300961767,2.01551079,4485.3,4485.2,2.83262]
[1758300961970,2.01551043,4485.3,4485.2,2.83262]
[1758300962173,2.01550948,4485.3,4485.2,2.83262]
[1758300962468,2.38260948,4485.3,4485.2,2.83262]
[1758300963464,2.38266294,4485.3,4485.2,2.83262]
[1758300964072,2.01556294,4485.3,4485.2,2.83262]
[1758300964472,2.38266294,4485.3,4485.2,2.83262]
[1758300970377,2.15866294,4485.3,4485.2,2.83262]
[1758300970879,2.38266294,4485.3,4485.2,2.83262]
[1758300977284,2.38266294,4485.3,4485.2,6.04042]
[1758300979187,2.15866294,4485.3,4485.2,6.04042]
[1758300979385,2.38266294,4485.3,4485.2,6.16342]
[1758300979883,2.15866294,4485.3,4485.2,6.04042]
[1758300980085,2.38266294,4485.3,4485.2,6.04042]
[1758300982679,1.79156294,4485.3,4485.2,6.04042]
[1758300982884,0.80071323,4485.3,4485.2,10.61036999]
[1758300983485,0.24376859,4485.3,4485.2,10.61036999]
[1758300984488,0.1352,4486.5,4486.0,0.79283141]
[1758300984697,0.7423,4486.3,4486.2,3.60883]
[1758300985495,0.9663,4486.3,4486.2,3.60883]
[1758300986595,1.5242,4486.3,4486.2,4.00283]
[1758300990798,1.5242,4486.3,4486.2,3.6018]
[1758300991005,1.5242,4486.3,4486.2,3.2078]
[1758300991006,5.74710001,4486.3,4486.2,3.2078]
[1758300991203,5.18920001,4486.3,4486.0,0.81503141]
[1758300991508,1.3205,4486.1,4486.0,0.81503141]
[1758300991899,1.3205,4486.1,4486.0,0.79283141]
[1758300992097,2.92183741,4486.1,4486.0,0.79283141]
[1758300992299,1.3205,4486.1,4486.0,0.79283141]
[1758300992802,0.7498,4485.6,4485.5,0.40109]
[1758300993002,1.5445,4485.6,4485.5,0.40109]
[1758300993492,1.5445,4485.6,4485.4,0.7929]
[1758300993493,1.5628,4485.5,4485.4,0.7929]
[1758300994897,2.12386067,4485.5,4485.4,0.7929]
[1758300996196,6.34680067,4485.5,4485.4,0.7929]
[1758300996704,6.37445424,4485.5,4485.4,0.7929]
[1758300997006,6.37445424,4485.5,4485.2,0.0222]
[1758300997307,2.92270395,4485.3,4485.2,0.0222]
[1758300997606,3.95835819,4485.3,4485.2,0.0222]
[1758300997999,0.2423,4485.0,4484.9,3.2078]
[1758300998306,2.59845424,4485.0,4484.9,3.2078]
[1758301001006,2.37445424,4485.0,4484.9,3.5818]
[1758301001206,2.59845424,4485.0,4484.9,4.1658]
[1758301001402,2.59845424,4485.0,4484.9,3.2078]
[1758301003308,2.59845424,4485.0,4484.9,3.5818]
[1758301003607,2.59845424,4485.0,4484.9,3.98294]
[1758301003810,2.59845424,4485.0,4484.9,3.5818]
[1758301004604,2.59845424,4485.0,4484.9,3.2078]
[1758301007410,2.59845424,4485.0,4484.7,0.8151]
[1758301007613,1.3205,4484.8,4484.7,1.59026]
[1758301007808,2.35615424,4484.8,4484.7,1.59026]
[1758301008001,2.35615424,4484.8,4484.7,1.1669]
[1758301008902,2.35615424,4484.8,4484.7,0.7929]
[1758301009111,6.35615424,4484.8,4484.7,0.7929]
[1758301009314,1.3205,4484.4,4484.3,3.2078]
[1758301009517,2.35615424,4484.4,4484.3,3.2078]
[1758301012614,1.75075424,4484.4,4484.3,4.5606]
[1758301012814,1.97475424,4484.4,4484.3,4.5606]
[1758301015117,1.97475424,4484.4,4484.3,1.3528]
[1758301015318,1.97475424,4484.4,4484.3,1.754]
[1758301016916,1.03565424,4484.4,4484.3,4.9618]
[1758301018522,0.81165424,4484.4,4484.3,8.9618]
[1758301018719,1.03565424,4484.4,4484.3,8.9618]
[1758301019822,0.9662,4485.2,4485.1,1.78632]
[1758301020023,1.1902,4485.2,4485.1,1.78632]